Cogmind - Beta 13 @@@ ROGUE MODE // 2024.04.04 @ 18:56:33 Player: Ciaphas Result: Destroyed by H-81 Overseer with Heavy Linear Accelerator Performance ------------- Evolutions (9) 4500 Regions Visited (14) 2800 Robots Destroyed (51) 255 Value Destroyed (1150) 1150 Prototype IDs (37) 740 Alien Tech Used (0) 0 Bonus (789) 789 TOTAL SCORE: 10234 Bonus ------- Follower Combat Kills 524 Aligned with FarCom 300 Friendly Fire -35 Cogmind --------- Core Integrity 0/1600 Matter 210/300 Energy 100/100 System Corruption 13% Temperature Cool (2) Movement Flying (45) Location -1/Access Parts ------- > --- POWER (2) -------- (None) > --- PROPULSION (6) --- Impulse Thruster Array > --- UTILITY (15) ----- (None) > --- WEAPON (2) ------- (None) > --- INVENTORY (5) ---- Precision Matter Filter Tactical Quantum Warhead Peak State ------------ > --- POWER ------------ Quantum Reactor Light Quantum Reactor > --- PROPULSION ------- Field Propulsion Array Field Propulsion Array Impulse Thruster Array > --- UTILITY ---------- Enhanced Optical Array Advanced ECM Suite Improved Medium Armor Plating Graphene Brace Graphene Brace Hacking Suite Hacking Suite Hacking Suite Improved Hacking Suite Improved Hacking Suite Improved Hacking Suite Improved System Shield > --- WEAPON ----------- Advanced Datajack Lance > --- INVENTORY -------- Light Fission Core Light Antimatter Reactor Improved Fusion Compressor Precision Matter Filter Precision Rocket Launcher [Rating: 134] Favorites ----------- Power Light Fission Core Engine Ion Engine Power Core Light Fission Core Reactor Light Quantum Reactor Propulsion Improved Cesium-ion Thruster Treads Light Treads Leg Aluminum Leg Wheel Wheel Flight Unit Improved Cesium-ion Thruster Utility Hacking Suite Device Graphene Brace Storage Large Storage Unit Processor Modified TNC Hackware Hacking Suite Protection Hardened Light Armor Plating Weapon Heavy Battle Rifle Ballistic Gun Heavy Battle Rifle Launcher Precision Rocket Launcher Special Weapon Remote Datajack Slashing Weapon Power Sword Piercing Weapon Lance Special Melee Weapon Advanced Datajack Build | -11 -10 -10 -10 -9 -8 -7 -7 -6 -5 -4 -4 -3 -2 -1 ------- Run | Yrd Mat Min Exi Min Mat Fac Sto Fac Fac Fac Ext Res Res Acc Slots Evolved 18 | . . . . . 4 2 . 2 2 2 . 2 2 2 Power 1 | . . . . . . . . 1 . . . . . . Propulsion 4 | . . . . . 2 . . 1 . . . 1 . . Utility 13 | . . . . . 2 2 . . 2 2 . 1 2 2 Weapon . | . . . . . . . . . . . . . . . Parts Attached 115 | 5 4 4 1 4 5 32 2 12 6 5 10 7 5 13 Power 24 | . 3 . . 1 . 1 1 4 2 . 2 2 4 4 Engine 2 | . 2 . . . . . . . . . . . . . Core 16 | . 1 . . 1 . 1 1 4 2 . 1 2 1 2 Reactor 6 | . . . . . . . . . . . 1 . 3 2 Propulsion 26 | 3 . 2 . . 3 11 . 1 . 1 1 2 . 2 Treads 5 | 2 . . . . 2 . . . . . . 1 . . Leg 1 | . . . . . 1 . . . . . . . . . Wheel 3 | 1 . 2 . . . . . . . . . . . . Hover . | . . . . . . . . . . . . . . . Flight 17 | . . . . . . 11 . 1 . 1 1 1 . 2 Utility 34 | 1 1 1 1 . 2 6 1 5 3 3 4 2 1 3 Device 14 | 1 . 1 . . 1 2 . 3 . 2 1 1 . 2 Storage 1 | . 1 . . . . . . . . . . . . . Processor 3 | . . . 1 . . . . . 1 . 1 . . . Hackware 8 | . . . . . . 2 1 1 1 1 . 1 1 . Protection 8 | . . . . . 1 2 . 1 1 . 2 . . 1 Artifact . | . . . . . . . . . . . . . . . Weapon 31 | 1 . 1 . 3 . 14 . 2 1 1 3 1 . 4 Energy Gun . | . . . . . . . . . . . . . . . Energy Cannon . | . . . . . . . . . . . . . . . Ballistic Gun 10 | 1 . 1 . 2 . 6 . . . . . . . . Ballistic Cannon . | . . . . . . . . . . . . . . . Launcher 8 | . . . . 1 . 2 . 1 . . 1 . . 3 Special Weapon 1 | . . . . . . 1 . . . . . . . . Impact Weapon . | . . . . . . . . . . . . . . . Slashing Weapon 6 | . . . . . . 3 . 1 1 . 1 . . . Piercing Weapon 3 | . . . . . . . . . . . 1 1 . 1 Special Melee Weapon 3 | . . . . . . 2 . . . 1 . . . . Unidentified Prototypes 8 | . . 1 . . . 3 1 1 . . . . . 2 Parts Lost 23 | . . 1 . . 1 1 . 2 . 1 4 . . 13 Power 4 | . . . . . . . . 1 . . 1 . . 2 Propulsion 7 | . . 1 . . 1 . . . . . 1 . . 4 Utility 8 | . . . . . . . . . . 1 1 . . 6 Weapon 4 | . . . . . . 1 . 1 . . 1 . . 1 Highest Loss Streak 6 | . . 1 . . 1 1 . 1 . 1 4 . . 6 To Critical Strikes . | . . . . . . . . . . . . . . . Average Slot Usage (%) 87 | . 100 99 98 100 88 91 100 97 96 86 83 82 80 50 Engine 3 | . 13 14 14 3 . . . . . . . . . . Core 5 | . . . . 10 9 7 7 13 11 10 7 4 3 . Treads 6 | . 28 18 14 14 16 . . . . . . . . . Wheel 3 | . . 9 14 14 9 . . . . . . . . . Flight 14 | . . . . . . 29 30 33 29 21 17 14 13 8 Device 8 | . 14 14 6 . 6 4 7 6 5 8 12 14 13 13 Storage 5 | . 14 14 14 14 9 4 . . . . . . . . Processor 5 | . . . 5 14 9 7 7 . 4 5 5 4 4 3 Hackware 11 | . . . . . . 9 21 25 27 26 27 27 28 18 Protection 4 | . . . . . 6 10 8 6 4 1 1 4 4 . Ballistic Gun 11 | . 28 28 28 28 18 10 . . . . . . . . Slashing Weapon 1 | . . . . . . 2 7 6 8 5 1 . . . Naked Turns 128 | . . . . . . . . . . . . . . 128 Heaviest Build 49 | 13 30 32 32 33 37 38 22 27 27 27 32 35 43 49 Greatest Support 62 | 40 40 40 10 20 62 23 22 28 28 31 35 46 46 55 Greatest Overweight (x) 3 | . . 3 3 3 3 2 . . . . . . . 3 Average Overweight (x) . | . . 2 3 1 . . . . . . . . . . Largest Inventory Capacity 15 | 8 15 15 15 15 15 15 5 5 5 5 5 5 5 5 Average Capacity 10 | 8 14 15 15 15 15 11 5 5 5 5 5 5 5 5 Most Carried 15 | 6 13 15 11 14 15 15 5 5 5 5 5 5 5 5 Average Carried 8 | 6 8 12 11 13 14 10 4 2 4 4 4 4 4 3 Final Capacity 15 | 8 15 15 15 15 15 5 5 5 5 5 5 5 5 5 Final Carried 15 | 6 13 11 11 14 15 5 4 5 5 5 5 4 5 2 Class Distribution -------------------- 46% | Mutant 28% | Hacker-Sprinter 10% | Hacker-Mutant 8% | Wizard-Mutant 4% | Wizard-Sprinter Dominant Class ---------------- Mutant | -10/Materials Mutant | -10/Mines Mutant | -10/Exiles Mutant | -9/Mines Mutant | -8/Materials Hacker-Sprinter | -7/Factory Hacker-Sprinter | -7/Storage Hacker-Sprinter | -6/Factory Hacker-Sprinter | -5/Factory Hacker-Sprinter | -4/Factory Hacker-Sprinter | -4/Extension Wizard-Sprinter | -3/Research Wizard-Mutant | -2/Research Wizard-Mutant | -1/Access Resources | -11 -10 -10 -10 -9 -8 -7 -7 -6 -5 -4 -4 -3 -2 -1 ----------- Run | Yrd Mat Min Exi Min Mat Fac Sto Fac Fac Fac Ext Res Res Acc Matter Collected 1814 | 280 155 130 . 77 208 292 70 46 139 20 120 . . 277 Remotely . | . . . . . . . . . . . . . . . Salvage Created 1564 | 87 214 83 . 148 243 339 110 75 101 137 27 . . . Parts 112 | 4 15 13 . 14 8 30 9 5 11 . 3 . . . Haulers Intercepted 2 | . . . . . 1 1 . . . . . . . . Recyclers Shooed 1 | . . 1 . . . . . . . . . . . . Parts Field Recycled . | . . . . . . . . . . . . . . . Retrieved Matter . | . . . . . . . . . . . . . . . Parts Self-Destructed . | . . . . . . . . . . . . . . . Prevented . | . . . . . . . . . . . . . . . Kills | -11 -10 -10 -10 -9 -8 -7 -7 -6 -5 -4 -4 -3 -2 -1 ------- Run | Yrd Mat Min Exi Min Mat Fac Sto Fac Fac Fac Ext Res Res Acc Combat Hostiles Destroyed 28 | . 4 6 . 6 2 7 1 2 . . . . . . Melee 4 | . . . . . . 1 1 2 . . . . . . Guns 18 | . 4 6 . 3 2 3 . . . . . . . . AOE 6 | . . . . 3 . 3 . . . . . . . . Classes Destroyed 12 | 2 3 1 . 2 1 3 . . . . . . . . Worker 6 | . . . . 1 1 2 2 . . . . . . . Builder 4 | . 2 . . . . . . . 1 . 1 . . . Tunneler 2 | 1 . . . . . . . . 1 . . . . . Hauler 2 | . . . . . 1 1 . . . . . . . . Recycler 3 | 1 . . . . 1 . . . . 1 . . . . Operator 4 | . . . . . . 2 1 . 1 . . . . . Watcher 2 | . 1 . . . . . . . 1 . . . . . Swarmer 13 | . . 6 . 3 . 3 . 1 . . . . . . Grunt 9 | . 4 . . 2 2 . 1 . . . . . . . Protector 1 | . . . . 1 . . . . . . . . . . Sentry 1 | . . . . . . 1 . . . . . . . . Programmer 4 | . . . . . . 3 . 1 . . . . . . Best Kill Streak 4 | 2 3 3 . 4 2 3 1 1 3 1 1 . . . Combat Bots Only 3 | . 2 3 . 3 1 3 1 1 . . . . . . Max Kills in Single Turn 2 | 1 1 2 . 2 2 2 1 1 1 1 1 . . . Gunslinging 1 | . . 1 . . . . . . . . . . . . Exploded 2 | . . . . 2 . 2 . . . . . . . . Melee 1 | . . . . . . 1 1 1 . . . . . . Uniques/NPCs Destroyed . | . . . . . . . . . . . . . . . Combat | -11 -10 -10 -10 -9 -8 -7 -7 -6 -5 -4 -4 -3 -2 -1 -------- Run | Yrd Mat Min Exi Min Mat Fac Sto Fac Fac Fac Ext Res Res Acc Hostile Shots Fired 392 | . 27 22 . 8 13 45 69 19 4 2 10 2 2 169 Missed 169 | . 5 6 . . 5 19 40 7 3 1 4 1 1 77 Damage Taken 5187 | . 318 158 . 121 125 341 288 250 19 216 527 25 29 2770 Core 2023 | . 32 35 . . 17 38 39 60 . 123 72 . . 1607 Absorbed by Shields 50 | . . . . . . . . . . . . . . 50 Core Remaining (%) 92 | 100 . . . 73 96 . 89 92 100 . 83 100 100 . Volleys Fired 101 | 5 22 11 . 10 19 31 . 1 . . 1 . . 1 Largest 2 | 2 2 2 . 2 2 2 . 1 . . 1 . . 1 Hottest 61 | 40 40 53 . 61 61 61 . 43 . . 43 . . 43 Shots Fired 185 | 10 44 22 . 17 38 51 . 1 . . 1 . . 1 Gun 174 | 10 44 22 . 14 38 46 . . . . . . . . Cannon . | . . . . . . . . . . . . . . . Launcher 9 | . . . . 3 . 3 . 1 . . 1 . . 1 Special 2 | . . . . . . 2 . . . . . . . . Kinetic 174 | 10 44 22 . 14 38 46 . . . . . . . . Thermal . | . . . . . . . . . . . . . . . Explosive 9 | . . . . 3 . 3 . 1 . . 1 . . 1 Electromagnetic . | . . . . . . . . . . . . . . . Robot Hit Streak 14 | 6 14 4 . 8 4 6 . . . . . . . . Robot Miss Streak 2 | 1 2 2 . 1 2 2 . . . . . . . . Penetration Max 1 | . . . . 1 1 1 . . . . . . . . Secondary Targets 1 | . . 1 . . . . . . . . . . . . Max Gunslinging Chain 1 | . . 1 . . . . . . . . . . . . Shots Hit Robots 153 | 8 33 15 . 12 20 38 6 3 4 3 11 . . . Core Hits 61 | 2 10 6 . 13 7 15 4 2 2 . . . . . Critical Kills . | . . . . . . . . . . . . . . . Critical Parts Destroyed . | . . . . . . . . . . . . . . . Critical Strikes 4 | . . . . . . 1 1 . . 2 . . . . Sever 4 | . . . . . . 1 1 . . 2 . . . . Melee Attacks 133 | . . . . . . 31 21 10 27 18 22 4 . . Impact . | . . . . . . . . . . . . . . . Slashing 116 | . . . . . . 30 21 10 27 17 11 . . . Piercing 5 | . . . . . . . . . . . 1 4 . . Sneak Attacks 17 | . . . . . . 1 2 . 2 1 11 . . . Combat Hostiles 1 | . . . . . . . . . . . 1 . . . Follow-up Attacks . | . . . . . . . . . . . . . . . Damage Inflicted 3864 | 112 406 223 . 565 466 1211 281 120 265 153 62 . . . Guns 2157 | 112 399 184 . 271 466 725 . . . . . . . . Cannons . | . . . . . . . . . . . . . . . Explosions 604 | . . . . 291 . 313 . . . . . . . . Melee 1051 | . . . . . . 170 281 120 265 153 62 . . . Ramming 52 | . 7 39 . 3 . 3 . . . . . . . . Kinetic 2157 | 112 399 184 . 271 466 725 . . . . . . . . Thermal . | . . . . . . . . . . . . . . . Explosive 604 | . . . . 291 . 313 . . . . . . . . Electromagnetic . | . . . . . . . . . . . . . . . Impact . | . . . . . . . . . . . . . . . Slashing 1051 | . . . . . . 170 281 120 265 153 62 . . . Piercing . | . . . . . . . . . . . . . . . Highest Corruption 20 | . . . . . . 4 4 . . 1 20 . . 13 Average Corruption 4 | . . . . . . 2 4 . . 1 13 . . 8 Corruption Purged . | . . . . . . . . . . . . . . . Corruption Blocked . | . . . . . . . . . . . . . . . Effects 38 | . . . . . . 16 6 . . . 6 . . 10 Message Errors 14 | . . . . . . 4 4 . . . 3 . . 3 Matter Fused 7 | . . . . . . 3 1 . . . . . . 3 Heat Flow Errors 6 | . . . . . . 3 . . . . 1 . . 2 Energy Discharges 3 | . . . . . . 2 . . . . 1 . . . Data Loss (minor) 6 | . . . . . . 3 . . . . 1 . . 2 Data Loss (major) 2 | . . . . . . 1 1 . . . . . . . Overload Shots . | . . . . . . . . . . . . . . . Overflow Damage 245 | . . . . 20 . 34 . 4 101 44 32 . . 10 Projectiles . | . . . . . . . . . . . . . . . Explosions 34 | . . . . 20 . . . 4 . . . . . 10 Melee 211 | . . . . . . 34 . . 101 44 32 . . . Knockbacks . | . . . . . . . . . . . . . . . Impact . | . . . . . . . . . . . . . . . Kinetic . | . . . . . . . . . . . . . . . Secondary . | . . . . . . . . . . . . . . . Self-Inflicted Damage 125 | . . 18 . 1 . 13 . 48 . . . . . 45 Shots 3 | . . . . . . 1 . 1 . . . . . 1 Rammed 7 | . . 5 . 1 . 1 . . . . . . . . Targets Rammed 9 | . 2 5 . 1 . 1 . . . . . . . . Kicked . | . . . . . . . . . . . . . . . Crushed 2 | . 2 . . . . . . . . . . . . . Highest Temperature 208 | 6 20 . . 12 26 208 . . . . 88 18 . 121 Average Temperature 35 | 6 6 . . 10 12 43 . . . . 50 8 . 59 Received Heat Transfer 612 | . 219 . . 18 90 39 102 . 9 . 45 . 9 81 Siege Activations . | . . . . . . . . . . . . . . . Robots Corrupted . | . . . . . . . . . . . . . . . Combat Hostiles . | . . . . . . . . . . . . . . . Parts Fried . | . . . . . . . . . . . . . . . Impact Corruptions . | . . . . . . . . . . . . . . . Robots Melted . | . . . . . . . . . . . . . . . Combat Hostiles . | . . . . . . . . . . . . . . . Parts Melted . | . . . . . . . . . . . . . . . Heat Transferred . | . . . . . . . . . . . . . . . Parts Sabotaged . | . . . . . . . . . . . . . . . Parts Stolen . | . . . . . . . . . . . . . . . Parts Stripped . | . . . . . . . . . . . . . . . Power Chain Reactions . | . . . . . . . . . . . . . . . Alert | -11 -10 -10 -10 -9 -8 -7 -7 -6 -5 -4 -4 -3 -2 -1 ------- Run | Yrd Mat Min Exi Min Mat Fac Sto Fac Fac Fac Ext Res Res Acc Peak Influence 370 | 10 149 71 . 117 197 326 365 322 213 153 339 228 128 370 Initial 177 | . 6 . . . 45 12 148 165 84 32 . 177 128 8 Average 88 | 7 28 13 . 67 124 67 253 222 104 95 165 188 24 93 Maximum Alert Level 1 | . . . . . . 1 1 1 1 . 1 1 . 1 Low Security (%) 87 | 100 100 100 . 100 100 88 21 54 98 100 63 90 100 74 Level 1 12 | . . . . . . 11 78 45 1 . 36 10 . 25 Level 2 . | . . . . . . . . . . . . . . . Level 3 . | . . . . . . . . . . . . . . . Level 4 . | . . . . . . . . . . . . . . . Level 5 . | . . . . . . . . . . . . . . . High Security . | . . . . . . . . . . . . . . . Max Security . | . . . . . . . . . . . . . . . Squads Dispatched 22 | . . . . 1 3 7 2 . 1 1 . 1 . 6 Investigation 7 | . . . . . 1 2 1 . 1 1 . . . 1 Extermination 4 | . . . . . . 3 . . . . . . . 1 Reinforcement 10 | . . . . . 2 2 1 . . . . 1 . 4 Assault 1 | . . . . 1 . . . . . . . . . . Garrison . | . . . . . . . . . . . . . . . Intercept . | . . . . . . . . . . . . . . . Searches Triggered . | . . . . . . . . . . . . . . . Construction Impeded . | . . . . . . . . . . . . . . . Haulers Reinforced 1 | . . . . . . 1 . . . . . . . . Active Scanning Responses . | . . . . . . . . . . . . . . . Cargo Convoy Interrupts . | . . . . . . . . . . . . . . . Stealth | -11 -10 -10 -10 -9 -8 -7 -7 -6 -5 -4 -4 -3 -2 -1 --------- Run | Yrd Mat Min Exi Min Mat Fac Sto Fac Fac Fac Ext Res Res Acc Distress Signals 7 | . . . . . . 1 2 . . 1 2 . . 1 Communications Jammed . | . . . . . . . . . . . . . . . Distress Signals . | . . . . . . . . . . . . . . . Times Spotted 146 | . 5 6 . 9 13 24 15 8 15 9 8 4 1 29 Peak Tracking Total 9 | . 3 3 . 5 3 5 9 5 6 4 3 3 1 7 Tactical Retreats 27 | . . . . . 1 4 1 2 4 2 5 . . 8 Traps | -11 -10 -10 -10 -9 -8 -7 -7 -6 -5 -4 -4 -3 -2 -1 ------- Run | Yrd Mat Min Exi Min Mat Fac Sto Fac Fac Fac Ext Res Res Acc Traps Triggered 18 | . . . . 1 . 2 . 1 . 3 4 . . 7 Indirectly . | . . . . . . . . . . . . . . . Trap Hack Attempts . | . . . . . . . . . . . . . . . Triggered . | . . . . . . . . . . . . . . . Disarmed . | . . . . . . . . . . . . . . . Reprogrammed . | . . . . . . . . . . . . . . . Reused . | . . . . . . . . . . . . . . . Traps Extracted . | . . . . . . . . . . . . . . . Installed . | . . . . . . . . . . . . . . . Triggered . | . . . . . . . . . . . . . . . Machines | -11 -10 -10 -10 -9 -8 -7 -7 -6 -5 -4 -4 -3 -2 -1 ---------- Run | Yrd Mat Min Exi Min Mat Fac Sto Fac Fac Fac Ext Res Res Acc Machines Disabled 7 | . . . . . 1 1 2 . . . 3 . . . Max in Single Turn 1 | . . . . . 1 1 1 . . . 1 . . . Garrison Access 4 | . . . . . . 2 . . . . . . . 2 Machines Repaired . | . . . . . . . . . . . . . . . Machines Dismantled . | . . . . . . . . . . . . . . . Machines Sabotaged . | . . . . . . . . . . . . . . . Overloaded Fab Kills . | . . . . . . . . . . . . . . . Hacking | -11 -10 -10 -10 -9 -8 -7 -7 -6 -5 -4 -4 -3 -2 -1 --------- Run | Yrd Mat Min Exi Min Mat Fac Sto Fac Fac Fac Ext Res Res Acc Machines Accessed 56 | . 4 . 2 1 . 15 3 3 4 4 10 5 1 4 Terminals 41 | . 4 . . . . 8 3 3 2 3 10 5 1 2 Fabricators 3 | . . . . . . 1 . . 1 1 . . . . Repair Stations . | . . . . . . . . . . . . . . . Recycling Units 1 | . . . . . . 1 . . . . . . . . Scanalyzers 4 | . . . . . . 3 . . 1 . . . . . Garrison Access 4 | . . . . . . 2 . . . . . . . 2 Total Hacks 133 | . 8 . 5 1 . 33 6 13 15 12 22 8 4 6 Successful 94 | . 6 . 5 1 . 20 2 10 9 10 18 7 4 2 Failed 39 | . 2 . . . . 13 4 3 6 2 4 1 . 4 Catastrophic 3 | . . . . . . 3 . . . . . . . . Database Lockouts . | . . . . . . . . . . . . . . . Manual 31 | . 1 . 1 . . 7 . 3 6 2 2 3 1 5 Terminals 100 | . 8 . . . . 17 6 13 11 8 22 8 4 3 Fabricators 8 | . . . . . . 1 . . 3 4 . . . . Repair Stations . | . . . . . . . . . . . . . . . Recycling Units 4 | . . . . . . 4 . . . . . . . . Scanalyzers 8 | . . . . . . 7 . . 1 . . . . . Garrison Access 7 | . . . . . . 4 . . . . . . . 3 Terminal Hacks 71 | . 5 . 5 1 . 7 2 10 5 8 18 6 4 . Record 17 | . . . 4 . . 2 . 2 1 4 3 1 . . Part Schematic 1 | . . . . . . . . 1 . . . . . . Robot Schematic 2 | . . . . . . . . . . . 2 . . . Prototype ID Bank 2 | . 1 . . . . . . 1 . . . . . . Open Door 10 | . . . . 1 . . 2 . . . 6 1 . . Open DSF 3 | . . . . . . 1 . 1 . . . 1 . . Level Access Points 3 | . . . . . . . . . 1 . . 1 1 . Branch Access Points 5 | . . . . . . . . . 1 1 2 . 1 . Emergency Access Points 1 | . . . . . . . . . . . . . 1 . Terminal Index 3 | . . . . . . 1 . . 1 . 1 . . . Alert Level 7 | . 1 . . . . 1 . 2 . . 1 2 . . Unreport Threat 5 | . 1 . . . . . . 1 1 1 . . 1 . Locate Traps 6 | . 1 . . . . 1 . 1 . 2 1 . . . Patrol Status 2 | . . . . . . . . 1 . . 1 . . . Assault Status 1 | . . . . . . . . . . . 1 . . . Zone Layout 2 | . 1 . . . . 1 . . . . . . . . Derelict Proto ID Bank 1 | . . . 1 . . . . . . . . . . . Fabricator Hacks 5 | . . . . . . 1 . . 2 2 . . . . Network Status 1 | . . . . . . 1 . . . . . . . . Load Schematic 2 | . . . . . . . . . 1 1 . . . . Build 2 | . . . . . . . . . 1 1 . . . . Repair Station Hacks . | . . . . . . . . . . . . . . . Recycling Unit Hacks 3 | . . . . . . 3 . . . . . . . . Process 1 | . . . . . . 1 . . . . . . . . Report Inventory 1 | . . . . . . 1 . . . . . . . . Retrieve Matter 1 | . . . . . . 1 . . . . . . . . Scanalyzer 7 | . . . . . . 6 . . 1 . . . . . Insert Component 4 | . . . . . . 3 . . 1 . . . . . Analyze 3 | . . . . . . 3 . . . . . . . . Garrison Access Hacks 3 | . . . . . . 2 . . . . . . . 1 Seal Access 3 | . . . . . . 2 . . . . . . . 1 Unauthorized Hacks 5 | . 1 . . . . 1 . . 1 . . 1 . 1 Terminals 4 | . 1 . . . . 1 . . 1 . . 1 . . Botnet 4 | . 1 . . . . 1 . . 1 . . 1 . . Fabricators . | . . . . . . . . . . . . . . . Repair Stations . | . . . . . . . . . . . . . . . Recycling Units . | . . . . . . . . . . . . . . . Scanalyzers . | . . . . . . . . . . . . . . . Garrison Access 1 | . . . . . . . . . . . . . . 1 Jam 1 | . . . . . . . . . . . . . . 1 Data Cores Recovered 3 | . . . . . . 1 1 . 1 . . . . . Used 1 | . . . . . . . . . 1 . . . . . Hacking Detections 38 | . 3 . . . . 11 1 2 3 4 7 4 . 3 Full Trace Events 4 | . . . . . . 1 1 . 1 1 . . . . Feedback Events . | . . . . . . . . . . . . . . . Feedback Blocked . | . . . . . . . . . . . . . . . Robot Schematics Acquired 2 | . . . . . . . . . . . 2 . . . Robots Built . | . . . . . . . . . . . . . . . Authchips . | . . . . . . . . . . . . . . . Time . | . . . . . . . . . . . . . . . Total Robot Build Rating . | . . . . . . . . . . . . . . . Part Schematics Acquired 3 | . . . . . . 2 . 1 . . . . . . Parts Built 2 | . . . . . . . . . 1 1 . . . . Authchips . | . . . . . . . . . . . . . . . Time 142 | . . . . . . . . . 95 47 . . . . Total Part Build Rating 10 | . . . . . . . . . 5 5 . . . . Parts Repaired . | . . . . . . . . . . . . . . . Time . | . . . . . . . . . . . . . . . Parts Recycled . | . . . . . . . . . . . . . . . Recycled Matter 342 | . . . . . . 342 . . . . . . . . Retrieved Matter 417 | . . . . . . 417 . . . . . . . . Retrieved Components . | . . . . . . . . . . . . . . . Parts Scanalyzed 2 | . . . . . . 2 . . . . . . . . Part Schematics Acquired 2 | . . . . . . 2 . . . . . . . . Parts Damaged . | . . . . . . . . . . . . . . . Bothacking | -11 -10 -10 -10 -9 -8 -7 -7 -6 -5 -4 -4 -3 -2 -1 ------------ Run | Yrd Mat Min Exi Min Mat Fac Sto Fac Fac Fac Ext Res Res Acc Used RIF Installer . | . . . . . . . . . . . . . . . Robots Hacked 3 | . . . . . . 2 . . . . 1 . . . Non-combat 3 | . . . . . . 2 . . . . 1 . . . Combat . | . . . . . . . . . . . . . . . Robot Hacks Applied 3 | . . . . . . 2 . . . . 1 . . . parse_system 1 | . . . . . . 1 . . . . . . . . no_distress 1 | . . . . . . . . . . . 1 . . . check_alert 1 | . . . . . . 1 . . . . . . . . Relay Couplers Released . | . . . . . . . . . . . . . . . Fabnet Peak Effective % . | . . . . . . . . . . . . . . . Robots Rewired 7 | . . . . . . . . . . . 7 . . . Allies Hacked . | . . . . . . . . . . . . . . . Hacks Repelled . | . . . . . . . . . . . . . . . Allies | -11 -10 -10 -10 -9 -8 -7 -7 -6 -5 -4 -4 -3 -2 -1 -------- Run | Yrd Mat Min Exi Min Mat Fac Sto Fac Fac Fac Ext Res Res Acc Total Allies 19 | . . . . 3 . . . . . . 16 . . . Largest Group 7 | . . . . 2 2 . . . . . 7 . . . Highest-Rated Group 415 | . . . . 49 49 . . . . . 415 . . . Highest-Rated Ally 159 | . . . . 31 31 . . . . . 159 . . . Total Orders . | . . . . . . . . . . . . . . . Ally Attacks 89 | . . . . 8 17 . . . . . 64 . . . Total Damage 2277 | . . . . 148 213 . . . . . 1916 . . . Kills 16 | . . . . 3 2 . . . . . 11 . . . Allies Corrupted . | . . . . . . . . . . . . . . . Allies Melted . | . . . . . . . . . . . . . . . Intel | -11 -10 -10 -10 -9 -8 -7 -7 -6 -5 -4 -4 -3 -2 -1 ------- Run | Yrd Mat Min Exi Min Mat Fac Sto Fac Fac Fac Ext Res Res Acc Robot Analysis Total . | . . . . . . . . . . . . . . . Derelict Logs Recovered 3 | . . 2 . 1 . . . . . . . . . . Drone Launches . | . . . . . . . . . . . . . . . Drone Recoveries . | . . . . . . . . . . . . . . . Exploration | -11 -10 -10 -10 -9 -8 -7 -7 -6 -5 -4 -4 -3 -2 -1 ------------- Run | Yrd Mat Min Exi Min Mat Fac Sto Fac Fac Fac Ext Res Res Acc Turns Passed 8107 | 50 413 1147 304 525 478 1946 292 173 502 419 346 370 63 1079 Spaces Moved 10071 | 18 200 811 242 247 229 2690 475 463 995 561 548 708 139 1745 Core 253 | . . . . . . . . . . . . . . 253 Treads 792 | 18 200 227 . 158 189 . . . . . . . . . Legs . | . . . . . . . . . . . . . . . Wheels 955 | . . 584 242 89 40 . . . . . . . . . Hover . | . . . . . . . . . . . . . . . Flight 8071 | . . . . . . 2690 475 463 995 561 548 708 139 1492 Fastest Speed 23 | 160 160 115 125 125 125 26 26 23 23 23 27 32 35 35 Average Speed 58 | 160 160 134 125 198 158 55 26 23 23 25 29 33 35 41 Slowest Speed 240 | 160 160 160 125 240 240 174 26 23 23 27 32 35 35 200 Overloaded Moves . | . . . . . . . . . . . . . . . Propulsion Burnouts . | . . . . . . . . . . . . . . . Robots Hopped 15 | . . . . . . 7 1 . 1 . 1 . . 5 Cave-ins Triggered 1 | . . . . . . . . . . . 1 . . . Exploration Rate (%) 37 | 3 31 99 59 53 21 48 63 14 22 18 63 18 4 47 Regions Visited 14 Branch Regions 5 Pre-discovered Areas 2 | . . 1 1 . . . . . . . . . . . Known Exits Taken 5 | . . . . . 1 . . . 1 1 . 1 1 . Unknown Exits Taken 9 | 1 1 1 1 1 . 1 1 1 . . 1 . . . Scrap Searched 3 | . . 3 . . . . . . . . . . . . Spaces Dug 111 | . . . . . . 25 12 20 20 14 11 . . 9 Terrain Destroyed 186 | . . 1 . 26 7 47 12 20 20 14 30 . . 9 Melee 86 | . . . . . . 25 12 4 20 14 11 . . . Projectile 9 | . . 1 . . 7 1 . . . . . . . . AOE 91 | . . . . 26 . 21 . 16 . . 19 . . 9 Terrain Rammed . | . . . . . . . . . . . . . . . Walls Destroyed . | . . . . . . . . . . . . . . . Machines Disabled . | . . . . . . . . . . . . . . . Actions | -11 -10 -10 -10 -9 -8 -7 -7 -6 -5 -4 -4 -3 -2 -1 --------- Run | Yrd Mat Min Exi Min Mat Fac Sto Fac Fac Fac Ext Res Res Acc Total 11959 | 27 248 848 244 264 307 3054 610 514 1230 811 713 836 150 2103 Wait 1284 | . 11 9 . 1 41 234 112 19 199 190 84 112 6 266 Move 10030 | 17 199 810 241 246 228 2678 472 462 992 560 545 707 138 1735 Hop 12 | . . . . . . 4 1 . 1 . 1 . . 5 Pick Up 31 | . 6 3 . 1 8 7 . 1 3 1 . 1 . . Fast Attach 49 | 1 1 1 1 . 5 11 1 5 3 3 4 4 2 7 Attach 27 | . 1 1 . . . 6 1 6 2 2 2 1 . 5 Detach 23 | . 2 . 1 . . 8 . 6 1 1 1 . . 3 Swap 40 | 4 2 2 . 4 . 15 . 1 1 . 4 2 3 2 Drop 73 | . 2 6 1 1 6 28 2 3 4 3 3 5 1 8 Fire 101 | 5 22 11 . 10 19 31 . 1 . . 1 . . 1 Melee 130 | . . . . . . 31 21 10 24 18 22 4 . . Ram 7 | . . 5 . 1 . 1 . . . . . . . . Kick . | . . . . . . . . . . . . . . . Crush 2 | . 2 . . . . . . . . . . . . . Escape Stasis 150 | . . . . . . . . . . 33 46 . . 71 Rewire . | . . . . . . . . . . . . . . . Trap . | . . . . . . . . . . . . . . . Miscellaneous . | . . . . . . . . . . . . . . . Route ------- -11/Scrapyard -10/Materials -10/Mines (discovered 4 exits: [*Mat x2] / *Exi / [*Sub]) -10/Exiles -9/Mines -8/Materials -7/Factory (discovered 2 exits: *Fac / *Sto) -7/Storage -6/Factory -5/Factory (discovered 6 exits: *Fac x4 / Upp x2) -4/Factory (discovered 4 exits: Upp x2 / *Ext x2) -4/Extension (discovered 2 exits: *Res / *Cet) -3/Research (discovered 4 exits: *Res x3 / [*Qua]) -2/Research (discovered 5 exits: *Acc x3 / Tes x2) -1/Access History --------- Turn | Location | Event 23 | -11/Scrapyard | Discovered new exit (range 3) 51 | -11/Scrapyard | Entered Materials 313 | -10/Materials | Build established: Mutant 421 | -10/Materials | Discovered new exit (range 13) 464 | -10/Materials | Entered Mines 484 | -10/Mines | Learned Materials trap positions 649 | -10/Mines | Discovered new exit (range 13) 690 | -10/Mines | Found a damaged Exp. Sensor Array with a note attached 694 | -10/Mines | Found Prototype Device 694 | -10/Mines | Identified Exp. Sensor Array 873 | -10/Mines | Learned location of Zion (-7) 908 | -10/Mines | A weapon hastily lodged in a ceiling crevice suddenly fell to the ground 1147 | -10/Mines | Discovered new exit (range 8) 1227 | -10/Mines | Received a Rocket Launcher from a helpful Derelict 1488 | -10/Mines | Discovered new exit (range 6) 1605 | -10/Mines | Deemed a non-threat by the Exiles lab entrance 1605 | -10/Mines | Discovered new exit (range 5) 1611 | -10/Mines | Entered Exiles 1641 | -10/Exiles | Met 8R-AWN 1664 | -10/Exiles | Met EX-HEX 1711 | -10/Exiles | Met EX-DEC 1739 | -10/Exiles | Met EX-BIN 1756 | -10/Exiles | Aligned with FarCom system 1758 | -10/Exiles | Given EX-Vault access code 1787 | -10/Exiles | Opened EX-Vault 1796 | -10/Exiles | Found Modified TNC 1825 | -10/Exiles | Warned to stay clear of 0b10 Research branches 1900 | -10/Exiles | Discovered new exit (range 14) 1915 | -10/Exiles | Left Exiles lab with Modified TNC 1915 | -10/Exiles | Entered Mines 1919 | -9/Mines | Learned location of 1 exit from Materials 1923 | -9/Mines | Met a Derelict testing a Signal Generator 1930 | -9/Mines | Met a Derelict who couldn't figure out how to use a Trap Extractor 2407 | -9/Mines | Discovered new exit (range 14) 2440 | -9/Mines | Entered Materials 2440 | -8/Materials | Accompanied by 2 allies 2440 | -8/Materials | Evolved 4 slots: Propulsion x2, Utility x2 2441 | -8/Materials | Identified exit to Factory 2442 | -8/Materials | Loaded intel: 22 trap records 2445 | -8/Materials | Led the pair of lost Derelicts to an unsafe place 2918 | -8/Materials | Entered Factory 2918 | -7/Factory | Evolved 2 slots: Utility x2 3062 | -7/Factory | Identified exit to DSF 3924 | -7/Factory | Build established: Hacker-Mutant 4407 | -7/Factory | Build established: Hacker-Sprinter 4537 | -7/Factory | Discovered new exit (range 6) 4556 | -7/Factory | Discovered new exit (range 3) 4864 | -7/Factory | Entered Storage 5147 | -7/Storage | Discovered new exit (range 7) 5156 | -7/Storage | Entered Factory 5156 | -6/Factory | Evolved 2 slots: Power x1, Propulsion x1 5176 | -6/Factory | Identified exit to DSF 5287 | -6/Factory | Discovered new exit (range 6) 5329 | -6/Factory | Entered another Factory area 5329 | -5/Factory | Evolved 2 slots: Utility x2 5442 | -5/Factory | Fabricated Imp. Hacking Suite (x1) 5557 | -5/Factory | Identified exit to Upper Caves 5633 | -5/Factory | Spotted B-75 Beast 5817 | -5/Factory | Identified exit to Factory 5831 | -5/Factory | Entered another Factory area 5831 | -4/Factory | Evolved 2 slots: Utility x2 6066 | -4/Factory | Fabricated Imp. Hacking Suite? 6190 | -4/Factory | Discovered new exit (range 9) 6197 | -4/Factory | Identified exit to Upper Caves 6197 | -4/Factory | Identified exit to Extension 6250 | -4/Factory | Entered Extension 6258 | -4/Extension | Disrupted transfer network 6290 | -4/Extension | Identified exit to Cetus 6296 | -4/Extension | Rescued A7 6304 | -4/Extension | Rescued a captive Derelict 6323 | -4/Extension | Rescued a captive Derelict 6323 | -4/Extension | Rescued a captive Derelict 6326 | -4/Extension | Spotted B-86 Titan 6375 | -4/Extension | Crushed by falling debris 6375 | -4/Extension | System corruption reached 10% 6383 | -4/Extension | Lost 3 allies 6385 | -4/Extension | Rescued a captive Derelict 6386 | -4/Extension | Rescued a captive Derelict 6406 | -4/Extension | Lost 4 parts (1p1n1u1w) 6549 | -4/Extension | Rescued a captive Derelict 6550 | -4/Extension | Rescued a captive Derelict 6585 | -4/Extension | Rescued a captive Derelict 6594 | -4/Extension | Discovered new exit (range 10) 6596 | -4/Extension | Entered Research 6596 | -3/Research | Evolved 2 slots: Propulsion x1, Utility x1 6654 | -3/Research | Identified exit to DSF 6665 | -3/Research | Found Prototype Processor 6690 | -3/Research | Discovered new exit (range 7) 6929 | -3/Research | Identified exit to Research 6966 | -3/Research | Entered another Research area 6966 | -2/Research | Evolved 2 slots: Utility x2 6977 | -2/Research | Identified exit to Access 6977 | -2/Research | Identified exit to Testing 7029 | -2/Research | Entered Access 7029 | -1/Access | Evolved 2 slots: Utility x2 7029 | -1/Access | Identified Exp. Target Analyzer 7056 | -1/Access | Spotted B-99 Colossus 7104 | -1/Access | Found Prototype Launcher 7104 | -1/Access | Identified Tactical Quantum Warhead 7133 | -1/Access | Build established: Wizard-Mutant 7526 | -1/Access | Lost 3 parts (2n1u) 7579 | -1/Access | Spotted B-99 Colossus 7850 | -1/Access | Lost 6 parts (2p1n3u) 7940 | -1/Access | Released all parts (8) 7950 | -1/Access | System corruption reached 10% 7986 | -1/Access | Core integrity fell below 50% 8058 | -1/Access | Core integrity fell below 20% 8108 | -1/Access | Destroyed by H-81 Overseer with Heavy Linear Accelerator Last Messages --------------- 08068_ Acquired Impulse Thruster Array. 08069_ Wave Collapse Detector explodes. 08069_ P-80 Master destroyed. 08074_ System corrupted: Heat flow error (+168). 08076_ Acquired 92 matter. 08078_ W-44 Eye sends out distress signal. 08078_ O-32 Director: "IFF HANDSHAKE FAILED. SECURING TERMINAL." 08083_ O-32 Director uses terminal to summon reinforcements. 08083_ ALERT: Hostiles spotted, dispatching reinforcements to Terminal A020. 08083_ O-32 Director locks terminal. 08087_ Terminal disabled. 08095_ K-01 Serf cleans the Longscan Aggregator. 08099_ QUISC:OZSR#6TC4NGE|Q5JGZ:,UA GW 08104_ ALERT: Hostiles spotted, dispatching reinforcements to Terminal A016. 08105_ Penetrated by Slug. 08105_ Knocked back. [Achievement: 10k Club] [Achievement: Achiever] Map ----- +----------------------------------------------------+ | ????????????????????# "" #??????????????? | | ????????????????????# "" #??????????????? | | ????????????????????# """"""#??????????????? | | ????????????????????# """"""#??????????????? | | ????????????????????# "" #??????????????? | | ????????????????????# "" #??????????????? | | ????????????????????# #??????????????? | | ????????????????????# #??????????????? | | ????????????????????# p #??????????????? | | ??????????????#############p#######??????????????? | | ??????????????# * + #???????????????????? | | ??????????????# # #???????????????????? | | ??????????????# """"" # k #???????????????????? | | ??????????????# ""Y"" # #???????????????????? | | ??????????????# + #???????????????????? | | ??????????????# # #???????????????????? | | ??????????????# # #???????????????????? | | ??????????????# # % #???????????????????? | | ??????????????########### #???????????????????? | | ????????????????????????# #???????????????????? | | ???????????????????????## #???????????????????? | | ???????????????????????#; #???????????????????? | | ???????????????????????## #??????Y????????????? | | ????????????????????????# #???????????????????? | | ????????????????????????#% #???????????????????? | | ????????????????????????#@ #???????????????????? | | ????????????????????????# H #???????????????????? | | ????????????????????????# #???????????????????? | | ???????????????????????? #??????????????????? | | ???????????????????????? #??????????????????? | | ???????????????????????? #??????????????????? | | ???????????????????????? +??????????????????? | | ???????????????????????# #??????????????????? | | ???????????????????????# #??????????????????? | | ???????????????????????### ###??????????????????? | | ?????????????????????????? #????????????????????? | | ?????????????????????????? #????????????????????? | | ?????????????????????????? #????????????????????? | | ?????????????????????????? #????????????????????? | | ?????????????????????????? #????????????????????? | | ?????????????????????????? ?????????????????????? | | ?????????????????????????????????????????????????? | | ?????????????????????????????????????????????????? | | ?????????????????????????????????????????????????? | | ?????????????????????????????????????????????????? | | ?????????????????????????????????????????????????? | | ?????????????????????????????????????????????????? | | ?????????????????????????????????????????????????? | | ?????????????????????????????????????????????????? | | ?????????????????????????????????????????????????? | +----------------------------------------------------+ Best States ------------- Heat Dissipation 65 Energy Generation 51 Energy Capacity 440 Matter Stores 300 Matter Capacity 300 Sight Range 22 Robot Scan Range 20 Terrain Scan Range 24 Terrain Scan Density 10 ECM Strength 2 Additional Mass Support 9 Armor Coverage 300 Weapon Cycling 15 Evasion (%) 65 Recoil Reduction 3 Offensive Hacking 66 Defensive Hacking 12 Item Schematics ----------------- Imp. Cesium-ion Thruster | -7/Factory | Scanalyzed Hacking Suite | -7/Factory | Scanalyzed Imp. Hacking Suite | -6/Factory | Hacked Robot Schematics ------------------ R-06 Scavenger | -4/Extension | Hacked E-15 Imp | -4/Extension | Hacked Fabricated ------------ Imp. Hacking Suite | x1 | -5/Factory Imp. Hacking Suite | x1 | -4/Factory Alien Tech Used ----------------- None Achievements -------------- 10k Club Achiever Dangerous Findings Denied? Prison Break Respectable Loadout Challenges ------------ None Game ------ Seed MinesnifferCloakingCycler Manual? 0 Play Time 02:17:46 Cumulative 13.8 hours Start 2024.04.04 @ 16:28:59 End 2024.04.04 @ 18:56:33 Sessions 1 Manual Loads 0 Difficulty Rogue Special Mode None Game No. 20 Rogue 20 Adventurer 0 Explorer 0 Win Type - Total 0 Types 0/0/0/0/0/0/0/0/0 Lore% 21 Gallery% 18 Achievement% 26 Wizard Run 0 Options --------- Layout 0 ASCII 0 Keyboard 0 Movement Mouse Keybinds 0 Fullscreen 2 Font 24/Proggy Map View 76x50 Zoom Use 0% Tactical HUD 1 Map Filters NONE Filters NONE Steam 1 RUN: 4b9a98bb-f845-4ad7-a839-cf4f48474cf0